Cogmind - Beta 15 *** ADVENTURER MODE // 2025.07.04 @ 19:04:58 Player: JakeTheIceMan Result: Core destroyed Performance ------------- Evolutions (6) 3000 Regions Visited (15) 3000 Robots Destroyed (204) 1020 Value Destroyed (7866) 7866 Prototype IDs (27) 540 Alien Tech Used (0) 0 Bonus (1404) 1404 TOTAL SCORE: 16830 Bonus ------- High Alert Combat Kills 108 Follower Combat Kills 567 Entered DSFs 500 Aligned with FarCom 300 Friendly Fire -71 Cogmind --------- Core Integrity 0/1150 Matter 300/300 Energy 100/100 System Corruption 9% Temperature Cool (0) Movement Core (50) Location -4/Factory Parts ------- > --- POWER (2) -------- (None) > --- PROPULSION (4) --- (None) > --- UTILITY (10) ----- (None) > --- WEAPON (3) ------- (None) > --- INVENTORY (5) ---- Light Antimatter Reactor Improved Medium Treads Improved Medium Treads Large Storage Unit Mini Drone Bay (3/3) Peak State ------------ > --- POWER ------------ Improved Deuterium Engine Micro Fission Core > --- PROPULSION ------- Heavy Treads Heavy Treads > --- UTILITY ---------- High-capacity Storage Unit Machine Analyzer Hardened Heavy Armor Plating Improved Medium Armor Plating Layered Heavy Armor Plating Force Field Advanced Hacking Suite Advanced Hacking Suite > --- WEAPON ----------- Wave Gun Gauss Rifle KE Penetrator > --- INVENTORY -------- Neutrino Core Neutrino Core Improved Medium Treads Improved Medium Treads Improved Medium Treads Armored Medium Treads Large Storage Unit High-capacity Matter Pod Improved Kinecellerator Improved Medium Armor Plating Improved Medium Armor Plating Advanced Hacking Suite Drone Bay Heavy Laser AWS/Autocannon [Rating: 104] Favorites ----------- Power Ion Engine Engine Ion Engine Power Core Micro Fission Core Reactor Antimatter Reactor Propulsion Heavy Treads Treads Heavy Treads Utility Advanced Hacking Suite Device Force Field Storage High-capacity Storage Unit Processor Machine Analyzer Hackware Advanced Hacking Suite Protection Hardened Medium Armor Plating Weapon Improved Assault Rifle Energy Gun Heavy Laser Energy Cannon EM Pulse Cannon Ballistic Gun Improved Assault Rifle Ballistic Cannon AWS/Autocannon Launcher Smartbomb Launcher Special Weapon Plasma Cutter Slashing Weapon Axe Build | -11 -10 -9 -9 -9 -8 -8 -7 -7 -7 -7 -6 -5 -5 -5 -4 ------- Run | Yrd Mat Mat Min Exi Min Mat Fac Was Fac DSF Fac Fac Was Fac Fac Slots Evolved 12 | . . 2 . . . 2 2 . . . 2 2 . . 2 Power 1 | . . . . . . . . . . . . 1 . . . Propulsion 2 | . . . . . . 1 . . . . 1 . . . . Utility 8 | . . 1 . . . 1 2 . . . 1 1 . . 2 Weapon 1 | . . 1 . . . . . . . . . . . . . Parts Attached 92 | 5 8 16 . 1 . 14 2 1 3 5 12 4 1 5 15 Power 12 | 1 1 2 . . . 2 . . 1 . 2 1 . 1 1 Engine 7 | 1 1 2 . . . 1 . . . . 1 1 . . . Core 4 | . . . . . . 1 . . 1 . . . . 1 1 Reactor 1 | . . . . . . . . . . . 1 . . . . Propulsion 15 | 2 2 4 . . . 4 . 1 . 1 1 . . . . Treads 15 | 2 2 4 . . . 4 . 1 . 1 1 . . . . Leg . | . . . . . . . . . . . . . . . . Wheel . | . . . . . . . . . . . . . . . . Hover . | . . . . . . . . . . . . . . . . Flight . | . . . . . . . . . . . . . . . . Utility 39 | . 1 7 . . . 2 1 . 2 4 6 . 1 2 13 Device 10 | . . . . . . . . . 2 1 . . 1 . 6 Storage 4 | . 1 2 . . . . . . . . 1 . . . . Processor 2 | . . . . . . . . . . . . . . 1 1 Hackware 8 | . . 1 . . . . 1 . . . 4 . . . 2 Protection 15 | . . 4 . . . 2 . . . 3 1 . . 1 4 Artifact . | . . . . . . . . . . . . . . . . Weapon 26 | 2 4 3 . 1 . 6 1 . . . 3 3 . 2 1 Energy Gun 4 | 1 1 . . . . . . . . . 1 . . 1 . Energy Cannon 1 | . . . . . . 1 . . . . . . . . . Ballistic Gun 15 | 1 1 3 . . . 4 . . . . 2 3 . . 1 Ballistic Cannon 2 | . . . . 1 . . 1 . . . . . . . . Launcher 1 | . . . . . . . . . . . . . . 1 . Special Weapon 2 | . 2 . . . . . . . . . . . . . . Impact Weapon . | . . . . . . . . . . . . . . . . Slashing Weapon 1 | . . . . . . 1 . . . . . . . . . Piercing Weapon . | . . . . . . . . . . . . . . . . Special Melee Weapon . | . . . . . . . . . . . . . . . . Unidentified Prototypes 2 | . . 1 . . . 1 . . . . . . . . . Parts Lost 33 | . . 4 . . . 2 . . . . . . 5 . 22 Power 4 | . . 1 . . . . . . . . . . . . 3 Propulsion 3 | . . . . . . 1 . . . . . . . . 2 Utility 21 | . . 2 . . . 1 . . . . . . 3 . 15 Weapon 5 | . . 1 . . . . . . . . . . 2 . 2 Highest Loss Streak 9 | . . 1 . . . 2 . . . . . . 5 . 9 To Critical Strikes 1 | . . . . . . . . . . . . . . . 1 Average Backups 11 | 2 5 8 11 11 12 12 11 11 12 12 13 14 13 12 11 Power 1 | . . 1 2 2 2 1 1 1 2 2 2 1 1 . 2 Propulsion 1 | . . . . . . . . . 2 2 1 2 3 3 3 Utility 5 | . 2 4 6 6 6 7 6 6 5 6 7 7 6 5 4 Weapon 2 | . 1 2 2 2 3 2 3 2 2 1 1 1 3 2 1 Tool/Special . | . . . . . . . . . . . . . . . . Unused Backups 25 | . 3 4 . . . 3 . 1 . 5 1 . . . 8 Power 6 | . 1 1 . . . 1 . 1 . . . . . . 2 Propulsion 7 | . . 1 . . . . . . . 1 1 . . . 4 Utility 5 | . 1 . . . . 1 . . . 1 . . . . 2 Weapon 6 | . 1 2 . . . 1 . . . 2 . . . . . Tool/Special 1 | . . . . . . . . . . 1 . . . . . Average Slot Usage (%) 80 | . 84 93 100 99 100 91 77 66 72 76 75 85 65 75 66 Engine 4 | . 14 10 11 11 11 3 . . . . . 2 5 5 2 Core 2 | . . . . . . 5 7 7 7 7 . 3 2 4 6 Reactor 1 | . . . . . . . . . . . 5 2 . . . Treads 16 | . 28 22 22 22 22 23 23 18 15 15 12 11 11 11 9 Device 5 | . . . . . . . . . 10 15 12 11 8 5 7 Storage 7 | . 13 11 11 11 11 9 7 7 7 7 6 5 5 5 4 Processor 1 | . . . . . . . . . . . . . . 4 6 Hackware 10 | . . 3 11 11 11 9 14 15 15 15 16 11 11 11 10 Protection 10 | . . 13 11 11 11 15 7 7 7 7 9 15 8 10 8 Energy Gun 1 | . 9 . . . . . . . . . 1 2 . 1 4 Ballistic Gun 10 | . 14 22 33 32 33 23 15 1 . . 3 13 9 4 3 Ballistic Cannon 1 | . . . . . . . . 7 7 7 4 . . . . Special Weapon 1 | . 3 9 . . . . . . . . . . . . . Peak Build Rating 104 | 5 8 18 18 40 21 46 28 59 65 75 94 91 91 97 104 Average Rating 58 | 4 6 13 18 18 21 24 25 51 63 71 83 86 72 91 86 On Entrance 41 | . 5 8 18 18 21 21 25 28 59 65 74 79 91 54 90 Naked Turns 7 | . . . . . . . . . . . . . . . 7 Heaviest Build 140 | 8 14 37 37 37 37 91 39 88 91 100 140 104 100 102 123 Greatest Support 140 | 40 40 40 40 40 40 60 60 90 90 98 140 140 140 140 140 Greatest Overweight (x) 2 | 2 . . . . . 1 . 1 1 1 . . . . 1 Average Overweight (x) . | . . . . . . . . . . . . . . . . Largest Inventory Capacity 20 | 5 8 15 15 15 15 15 15 15 15 15 20 20 20 20 20 Average Capacity 16 | 5 7 11 15 15 15 15 15 15 15 15 19 20 20 20 19 Most Carried 19 | 3 8 11 11 15 14 15 14 15 15 15 17 17 17 19 18 Average Carried 12 | 2 5 8 11 11 14 14 13 12 14 13 14 16 15 14 13 Final Capacity 20 | 5 8 15 15 15 15 15 15 15 15 15 20 20 20 20 5 Final Carried 18 | 3 6 11 11 14 14 13 13 15 14 15 16 17 15 18 5 Class Distribution -------------------- 54% | Hacker-Tank 21% | Hacker-Mutant 8% | Mutant 7% | Scavenger-Tank 3% | Tank Dominant Class ---------------- Mutant | -10/Materials Scavenger-Tank | -9/Materials Hacker-Tank | -9/Mines Hacker-Tank | -9/Exiles Hacker-Skirmisher | -8/Mines Scavenger-Tank | -8/Materials Hacker-Mutant | -7/Factory Hacker-Tank | -7/Waste Hacker-Tank | -7/Factory Hacker-Tank | -7/DSF Hacker-Tank | -6/Factory Hacker-Tank | -5/Factory Hacker-Mutant | -5/Waste Hacker-Tank | -5/Factory Hacker-Mutant | -4/Factory Resources | -11 -10 -9 -9 -9 -8 -8 -7 -7 -7 -7 -6 -5 -5 -5 -4 ----------- Run | Yrd Mat Mat Min Exi Min Mat Fac Was Fac DSF Fac Fac Was Fac Fac Matter Collected 4913 | 165 508 801 63 . . 678 24 142 . 80 818 174 . 411 1049 Remotely . | . . . . . . . . . . . . . . . . Salvage Created 9106 | . 360 1482 60 . . 1550 24 1315 . 55 2025 324 . 414 1497 Parts 439 | . 25 97 5 . . 81 2 7 . 1 109 17 . 27 68 Haulers Intercepted 8 | . 1 4 . . . 3 . . . . . . . . . Recyclers Shooed 1 | . . . . . . . . . . . 1 . . . . Parts Field Recycled . | . . . . . . . . . . . . . . . . Retrieved Matter . | . . . . . . . . . . . . . . . . Parts Self-Destructed . | . . . . . . . . . . . . . . . . Prevented . | . . . . . . . . . . . . . . . . Kills | -11 -10 -9 -9 -9 -8 -8 -7 -7 -7 -7 -6 -5 -5 -5 -4 ------- Run | Yrd Mat Mat Min Exi Min Mat Fac Was Fac DSF Fac Fac Was Fac Fac Combat Hostiles Destroyed 152 | . 8 26 4 . . 24 . 6 . 2 43 4 . 15 20 Melee 1 | . . . . . . . . . . . . . . . 1 Guns 89 | . 8 19 4 . . 21 . . . . 12 4 . 3 18 Cannons 49 | . . 7 . . . 3 . 6 . 2 31 . . . . AOE 12 | . . . . . . . . . . . . . . 12 . Classes Destroyed 18 | . 4 5 . . . 2 . 1 . 2 4 . . . . Worker 9 | . . 2 . . . 1 1 . . . 5 . . . . Builder 6 | . . 2 . . . 2 . . . . 1 . . . 1 Tunneler 1 | . . 1 . . . . . . . . . . . . . Hauler 8 | . 1 4 . . . 3 . . . . . . . . . Recycler 2 | . . . . . . 2 . . . . . . . . . Mechanic 2 | . . . . . . . . . . . 1 1 . . . Operator 8 | . . 3 . . . 2 . . . . 1 1 . 1 . Watcher 16 | . 2 3 . . . 4 . . . . 4 1 . 1 1 Swarmer 24 | . 2 6 4 . . 3 . . . . 4 . . 5 . Grunt 86 | . 6 14 . . . 15 . . . . 28 4 . 6 13 Brawler 1 | . . . . . . . . . . 1 . . . . . Duelist 2 | . . . . . . 1 . . . . 1 . . . . Sentry 16 | . . 6 . . . 5 . . . . 2 . . . 3 Demolisher 1 | . . . . . . . . . . . 1 . . . . Hunter 2 | . . . . . . . . . . . 2 . . . . Programmer 13 | . . . . . . . . . . . 5 . . 4 4 Heavy 1 | . . . . . . . . . . 1 . . . . . Compactor 6 | . . . . . . . . 6 . . . . . . . Best Kill Streak 12 | . 3 7 4 . . 11 1 2 . 1 12 2 . 5 5 Combat Bots Only 7 | . 2 3 4 . . 7 . 2 . 1 7 1 . 5 5 Max Kills in Single Turn 5 | . 1 2 1 . . 2 1 1 . 1 5 1 . 5 1 Gunslinging 1 | . . . . . . 1 . . . . . . . . . Exploded 5 | . . . . . . . . . . . . . . 5 . Melee 1 | . . . . . . . . . . . . . . . 1 Uniques/NPCs Destroyed . | . . . . . . . . . . . . . . . . Combat | -11 -10 -9 -9 -9 -8 -8 -7 -7 -7 -7 -6 -5 -5 -5 -4 -------- Run | Yrd Mat Mat Min Exi Min Mat Fac Was Fac DSF Fac Fac Was Fac Fac Hostile Shots Fired 1151 | . 61 151 32 . . 84 . . . . 232 38 5 101 447 Missed 289 | . 21 41 11 . . 29 . . . . 70 3 . 24 90 Hits 862 | . 40 110 21 . . 55 . . . . 162 35 5 77 357 Melee 5 | . . . . . . . . . . . . . 5 . . Projectile 857 | . 40 110 21 . . 55 . . . . 162 35 . 77 357 AOE 4 | . . . . . . . . . . . 3 . . . 1 Critical Strikes 47 | . 1 1 . . . 3 . . . . 9 1 2 6 24 Damage Taken 10573 | . 400 991 125 . . 666 . . . 38 1852 264 143 705 5389 Core 1674 | . 66 125 12 . . 63 . . . . 94 28 81 33 1172 Absorbed by Shields 1559 | . . . . . . . . . . 17 742 259 38 347 156 Reduced by Siege Mode 118 | . . . . . . . . . . . 57 . . 13 48 Ignored by Resistances 3473 | . 119 293 42 . . 194 . . . 14 739 140 48 291 1593 Regen/Repaired (Parts) 2521 | . . 170 . . . 101 . . . . 1356 . . . 894 Core Remaining (%) 85 | 100 73 . . . 65 88 . . . 100 88 . . 85 . Volleys Fired 490 | . 44 86 7 . . 59 5 2 . . 54 29 2 52 150 Largest 3 | . 2 3 3 . . 3 2 3 . . 3 3 3 1 2 Hottest 125 | . 60 69 69 . . 109 48 85 . . 125 125 99 81 114 Shots Fired 1073 | . 86 231 21 . . 182 10 39 . 12 201 64 6 54 167 Gun 855 | . 82 170 21 . . 170 10 4 . . 122 64 6 39 167 Cannon 138 | . . . . . . 12 . 35 . 12 79 . . . . Launcher 15 | . . . . . . . . . . . . . . 15 . Special 65 | . 4 61 . . . . . . . . . . . . . Kinetic 816 | . 49 170 21 . . 179 10 39 . 12 186 58 6 25 61 Thermal 239 | . 37 61 . . . . . . . . 15 6 . 14 106 Explosive 15 | . . . . . . . . . . . . . . 15 . Electromagnetic 3 | . . . . . . 3 . . . . . . . . . Robot Hit Streak 77 | . 14 30 6 . . 39 40 35 . 47 77 14 5 11 24 Robot Miss Streak 4 | . 3 2 4 . . 2 2 1 . . 3 3 1 2 2 Penetration Max 1 | . . . . . . . . . . . 1 1 . . 1 Secondary Targets 16 | . 2 3 2 . . 3 . . . . 5 1 . . . Max Gunslinging Chain 1 | . 1 1 1 . . 1 . . . . 1 1 . . . Capacitor 38 | . . . . . . . . . . . . . . . 38 Autonomous 134 | . . . . . . 9 . 33 . 12 80 . . . . Shots Hit Robots 821 | . 64 167 11 . . 137 6 37 . 12 160 45 5 32 145 Core Hits 348 | . 21 67 4 . . 63 2 8 . 2 71 16 1 33 60 Critical Kills 2 | . . 1 . . . . . . . . 1 . . . . Critical Parts Destroyed 4 | . . . . . . 2 . . . . 2 . . . . Critical Strikes 28 | . . 2 . . . 3 . 2 . 2 12 . . . 7 Burn 7 | . . . . . . . . . . . . . . . 7 Destroy 6 | . . 1 . . . 2 . . . . 3 . . . . Blast 14 | . . . . . . 1 . 2 . 2 9 . . . . Sever 1 | . . 1 . . . . . . . . . . . . . Melee Attacks . | . . . . . . . . . . . . . . . . Impact . | . . . . . . . . . . . . . . . . Slashing . | . . . . . . . . . . . . . . . . Piercing . | . . . . . . . . . . . . . . . . Sneak Attacks . | . . . . . . . . . . . . . . . . Combat Hostiles . | . . . . . . . . . . . . . . . . Follow-up Attacks . | . . . . . . . . . . . . . . . . Damage Inflicted 25453 | . 773 2372 135 . . 2926 116 2844 . 889 8384 934 115 2540 3425 Guns 11852 | . 773 1920 135 . . 2024 116 39 . . 1805 934 115 607 3384 Cannons 10542 | . . . . . . 866 . 2805 . 889 5982 . . . . Explosions 2566 | . . . . . . 36 . . . . 597 . . 1933 . Melee . | . . . . . . . . . . . . . . . . Ramming 41 | . . . . . . . . . . . . . . . 41 Kinetic 19380 | . 521 1920 135 . . 2798 116 2844 . 889 7491 823 115 387 1341 Thermal 4007 | . 252 452 . . . 36 . . . . 893 111 . 220 2043 Explosive 1797 | . . . . . . . . . . . . . . 1797 . Electromagnetic 228 | . . . . . . 92 . . . . . . . 136 . Impact . | . . . . . . . . . . . . . . . . Slashing . | . . . . . . . . . . . . . . . . Piercing . | . . . . . . . . . . . . . . . . Highest Corruption 12 | . . . . . . . . . . . 5 . 9 12 9 Average Corruption 5 | . . . . . . . . . . . 2 . 6 10 4 Corruption Purged . | . . . . . . . . . . . . . . . . Corruption Blocked . | . . . . . . . . . . . . . . . . Effects 114 | . . . . . . . . . . . 34 . 5 61 14 Message Errors 27 | . . . . . . . . . . . 10 . . 13 4 Matter Fused 31 | . . . . . . . . . . . 12 . 3 15 1 Heat Flow Errors 11 | . . . . . . . . . . . 1 . 1 8 1 Energy Discharges 15 | . . . . . . . . . . . 4 . 1 8 2 Parts Fused 1 | . . . . . . . . . . . . . . 1 . Data Loss (minor) 10 | . . . . . . . . . . . 4 . . 5 1 Data Loss (major) 5 | . . . . . . . . . . . 1 . . 2 2 Misfires 7 | . . . . . . . . . . . 1 . . 5 1 Alerts 2 | . . . . . . . . . . . 1 . . . 1 Misdirections 1 | . . . . . . . . . . . . . . 1 . Weapon Failures 4 | . . . . . . . . . . . . . . 3 1 Overload Shots . | . . . . . . . . . . . . . . . . Overflow Damage 1617 | . . . . . . 159 . . . 42 1284 . . 132 . Projectiles 1292 | . . . . . . 152 . . . 42 1098 . . . . Explosions 325 | . . . . . . 7 . . . . 186 . . 132 . Melee . | . . . . . . . . . . . . . . . . Knockbacks 30 | . . . . . . 5 . . . 3 22 . . . . Impact . | . . . . . . . . . . . . . . . . Kinetic 30 | . . . . . . 5 . . . 3 22 . . . . Secondary . | . . . . . . . . . . . . . . . . Self-Inflicted Damage 33 | . . . . . . 24 . . . . . . . 1 8 Shots 2 | . . . . . . 1 . . . . . . . 1 . Rammed 6 | . . . . . . . . . . . . . . . 6 Targets Rammed 7 | . . . . . . . . . . . . . . . 7 Kicked . | . . . . . . . . . . . . . . . . Crushed 1 | . . . . . . . . . . . . . . . 1 Highest Temperature 679 | . 97 36 36 . . 210 . 48 . . 462 379 252 351 679 Average Temperature 133 | . 41 10 19 . . 56 . 28 . . 122 197 73 96 218 Received Heat Transfer 3333 | . 303 480 . . . 405 . . . . 601 153 . 159 1232 Effects 68 | . . . . . . . . . . . 4 5 . 6 53 Shutdowns 23 | . . . . . . . . . . . 1 3 . . 19 Energy Bleed 9 | . . . . . . . . . . . . 1 . 2 6 Interference 14 | . . . . . . . . . . . 3 . . 4 7 Matter Decay 7 | . . . . . . . . . . . . . . . 7 Short Circuit 7 | . . . . . . . . . . . . 1 . . 6 Damage (minor) 6 | . . . . . . . . . . . . . . . 6 Damage (major) 2 | . . . . . . . . . . . . . . . 2 Siege Activations 4 | . . . . . . . . . . . 2 . . 1 1 Total Turns 122 | . . . . . . . . . . . 64 . . 10 48 Longest Duration 48 | . . . . . . . . . . . 40 . . 10 48 Martial Activations . | . . . . . . . . . . . . . . . . Shielding Activations . | . . . . . . . . . . . . . . . . Robots Disrupted 1 | . . . . . . . . . . . . . . 1 . Combat Hostiles 1 | . . . . . . . . . . . . . . 1 . Robots Corrupted . | . . . . . . . . . . . . . . . . Combat Hostiles . | . . . . . . . . . . . . . . . . Parts Fried . | . . . . . . . . . . . . . . . . Impact Corruptions . | . . . . . . . . . . . . . . . . Robots Melted 1 | . . . . . . . . . . . . . . . 1 Combat Hostiles 1 | . . . . . . . . . . . . . . . 1 Parts Melted 14 | . . 1 . . . 1 . . . . . . . . 12 Heat Transferred 7424 | . 575 1517 . . . 50 . . . . 955 222 . 333 3772 Parts Sabotaged . | . . . . . . . . . . . . . . . . Parts Stolen . | . . . . . . . . . . . . . . . . Parts Stripped . | . . . . . . . . . . . . . . . . Power Chain Reactions 1 | . . . . . . 1 . . . . . . . . . Alert | -11 -10 -9 -9 -9 -8 -8 -7 -7 -7 -7 -6 -5 -5 -5 -4 ------- Run | Yrd Mat Mat Min Exi Min Mat Fac Was Fac DSF Fac Fac Was Fac Fac Maximum Alert Level 2 | . . . . . . 1 . . . 1 2 . . 1 . Low Security (%) 83 | 100 100 100 100 . 100 53 100 100 100 90 51 100 100 98 100 Level 1 15 | . . . . . . 46 . . . 9 41 . . 1 . Level 2 1 | . . . . . . . . . . . 6 . . . . Level 3 . | . . . . . . . . . . . . . . . . Level 4 . | . . . . . . . . . . . . . . . . Level 5 . | . . . . . . . . . . . . . . . . High Security . | . . . . . . . . . . . . . . . . Max Security . | . . . . . . . . . . . . . . . . Sterilizations 1 | . . . . . . . . . . 1 . . . . . Peak Influence 484 | . 84 174 90 . . 348 111 14 . 281 484 84 . 209 90 Initial 127 | . . . 12 . . . 111 14 . . 127 20 . . 14 Average 102 | . 21 74 38 . . 173 74 . . 110 215 30 . 86 16 Influence Increases 5609 | . 224 807 90 . . 735 21 9 . 430 1751 156 . 692 694 Destroy 0b10 Robot/C 3220 | . 160 520 80 . . 480 . . . 220 980 80 . 300 400 Destroy 0b10 Robot/NC 310 | . 15 80 . . . 70 5 . . 10 95 15 . 10 10 Destroy Leader 728 | . 36 144 10 . . 104 . . . 50 228 12 . 52 92 Allied During Kill 145 | . . . . . . . . . . 100 45 . . . . Successful Hack 126 | . 13 11 . . . 18 16 . . . 60 . . 8 . Disable Machine 288 | . . 18 . . . 27 . . . 9 198 . . 36 . Destroy Structure 447 | . . 4 . . . 36 . 9 . 41 115 4 . 226 12 Lose Combat Pursuer 345 | . . 30 . . . . . . . . 30 45 . 60 180 Influence Decreases 5544 | . 224 769 78 50 . 448 256 61 . 149 1984 204 . 657 664 Entered New Map 493 | . . . 26 50 . . 176 38 . . 154 28 . . 21 Time Decay 4330 | . 224 739 52 . . 428 80 23 . . 1490 176 . 657 461 Lost Part 232 | . . 30 . . . 20 . . . . . . . . 182 Lost Ally 189 | . . . . . . . . . . 149 40 . . . . Purge Threat 300 | . . . . . . . . . . . 300 . . . . Squads Dispatched 46 | . . 4 . . . 2 . . . 2 19 2 . 10 7 Investigation 17 | . . 1 . . . 1 . . . . 9 1 . 2 3 Extermination 13 | . . . . . . . . . . . 6 1 . 3 3 Reinforcement 13 | . . 3 . . . 1 . . . 2 4 . . 2 1 Assault . | . . . . . . . . . . . . . . . . Garrison 3 | . . . . . . . . . . . . . . 3 . Intercept . | . . . . . . . . . . . . . . . . Searches Triggered . | . . . . . . . . . . . . . . . . Construction Impeded 2 | . . . . . . . . . . . 1 . . 1 . Haulers Reinforced 2 | . . . . . . . . . . . 1 . . . 1 Active Scanning Responses . | . . . . . . . . . . . . . . . . Cargo Convoy Interrupts 1 | . . . . . . . . . . . . . . . 1 Stealth | -11 -10 -9 -9 -9 -8 -8 -7 -7 -7 -7 -6 -5 -5 -5 -4 --------- Run | Yrd Mat Mat Min Exi Min Mat Fac Was Fac DSF Fac Fac Was Fac Fac Distress Signals 9 | . 1 2 . . . 3 . . . . 1 . . 1 1 Communications Jammed 25 | . . . . . . . . . . . 5 20 . . . Distress Signals 21 | . . . . . . . . . . . 5 16 . . . Times Spotted 259 | . 16 40 4 . . 37 1 6 . 9 66 9 5 20 46 Peak Tracking Total 11 | . 4 5 4 . . 6 1 2 . 5 4 4 5 7 11 Tactical Retreats 11 | . . 2 . . . . . . . . 2 1 . 2 4 Traps | -11 -10 -9 -9 -9 -8 -8 -7 -7 -7 -7 -6 -5 -5 -5 -4 ------- Run | Yrd Mat Mat Min Exi Min Mat Fac Was Fac DSF Fac Fac Was Fac Fac Traps Triggered 11 | . . . . . . . 1 . . 1 8 1 . . . Indirectly . | . . . . . . . . . . . . . . . . Trap Hack Attempts . | . . . . . . . . . . . . . . . . Triggered . | . . . . . . . . . . . . . . . . Disarmed . | . . . . . . . . . . . . . . . . Reprogrammed . | . . . . . . . . . . . . . . . . Reused . | . . . . . . . . . . . . . . . . Traps Extracted . | . . . . . . . . . . . . . . . . Installed . | . . . . . . . . . . . . . . . . Triggered . | . . . . . . . . . . . . . . . . Machines | -11 -10 -9 -9 -9 -8 -8 -7 -7 -7 -7 -6 -5 -5 -5 -4 ---------- Run | Yrd Mat Mat Min Exi Min Mat Fac Was Fac DSF Fac Fac Was Fac Fac Machines Disabled 32 | . . 2 . . . 3 . . . 1 22 . . 4 . Max in Single Turn 10 | . . 1 . . . 1 . . . . 10 . . 2 . Garrison Access 1 | . . . . . . . . . . . 1 . . . . Machines Repaired . | . . . . . . . . . . . . . . . . Machines Dismantled 2 | . . 2 . . . . . . . . . . . . . Machines Sabotaged . | . . . . . . . . . . . . . . . . Overloaded Fab Kills . | . . . . . . . . . . . . . . . . Hacking | -11 -10 -9 -9 -9 -8 -8 -7 -7 -7 -7 -6 -5 -5 -5 -4 --------- Run | Yrd Mat Mat Min Exi Min Mat Fac Was Fac DSF Fac Fac Was Fac Fac Machines Accessed 45 | . 4 6 . 1 . 3 1 . 1 . 19 1 . 6 3 Terminals 30 | . 4 4 . . . 2 1 . 1 . 10 1 . 5 2 Fabricators 4 | . . . . . . . . . . . 4 . . . . Repair Stations 8 | . . 2 . . . 1 . . . . 4 . . . 1 Recycling Units 1 | . . . . . . . . . . . . . . 1 . Scanalyzers . | . . . . . . . . . . . . . . . . Garrison Access 1 | . . . . . . . . . . . 1 . . . . Total Hacks 121 | . 9 18 . 1 . 11 3 . 1 . 52 4 . 14 8 Successful 79 | . 5 10 . 1 . 8 1 . 1 . 38 4 . 7 4 Failed 42 | . 4 8 . . . 3 2 . . . 14 . . 7 4 Catastrophic 11 | . . 2 . . . 1 1 . . . 3 . . 2 2 Database Lockouts . | . . . . . . . . . . . . . . . . Manual 56 | . 6 9 . 1 . 6 3 . . . 14 4 . 9 4 Terminals 74 | . 9 14 . . . 7 3 . 1 . 19 4 . 13 4 Fabricators 10 | . . . . . . . . . . . 10 . . . . Repair Stations 33 | . . 4 . . . 4 . . . . 21 . . . 4 Recycling Units 1 | . . . . . . . . . . . . . . 1 . Scanalyzers . | . . . . . . . . . . . . . . . . Garrison Access 2 | . . . . . . . . . . . 2 . . . . Terminal Hacks 38 | . 5 6 . 1 . 4 1 . 1 . 10 4 . 6 . Record 1 | . . 1 . . . . . . . . . . . . . Part Schematic 17 | . 3 3 . . . 3 1 . . . 2 3 . 2 . Prototype ID Bank 1 | . . . . . . 1 . . . . . . . . . Open DSF 4 | . . . . . . . . . 1 . 2 . . 1 . Level Access Points 2 | . 1 . . . . . . . . . 1 . . . . Fabricator Index 2 | . . . . . . . . . . . 1 . . 1 . Alert Level 3 | . . 1 . . . . . . . . 1 . . 1 . Unreport Threat 2 | . . . . . . . . . . . 2 . . . . Locate Traps 1 | . . . . . . . . . . . . . . 1 . Transport Status 1 | . 1 . . . . . . . . . . . . . . Garrison Status 1 | . . . . . . . . . . . . 1 . . . Registered Components 1 | . . 1 . . . . . . . . . . . . . Zone Layout 1 | . . . . . . . . . . . 1 . . . . Proto ID Catalog 1 | . . . . 1 . . . . . . . . . . . Fabricator Hacks 8 | . . . . . . . . . . . 8 . . . . Load Schematic 4 | . . . . . . . . . . . 4 . . . . Build 4 | . . . . . . . . . . . 4 . . . . Repair Station Hacks 31 | . . 4 . . . 4 . . . . 19 . . . 4 Scan Component 16 | . . 2 . . . 2 . . . . 10 . . . 2 Repair 15 | . . 2 . . . 2 . . . . 9 . . . 2 Recycling Unit Hacks 1 | . . . . . . . . . . . . . . 1 . Retrieve Matter 1 | . . . . . . . . . . . . . . 1 . Scanalyzer . | . . . . . . . . . . . . . . . . Garrison Access Hacks 1 | . . . . . . . . . . . 1 . . . . Seal Access 1 | . . . . . . . . . . . 1 . . . . Unauthorized Hacks . | . . . . . . . . . . . . . . . . Terminals . | . . . . . . . . . . . . . . . . Fabricators . | . . . . . . . . . . . . . . . . Repair Stations . | . . . . . . . . . . . . . . . . Recycling Units . | . . . . . . . . . . . . . . . . Scanalyzers . | . . . . . . . . . . . . . . . . Garrison Access . | . . . . . . . . . . . . . . . . Data Cores Recovered 4 | . . 1 . . . 1 . . . . 1 1 . . . Used 2 | . . . . . . 1 . . . . 1 . . . . Hacking Detections 34 | . 2 4 . . . 1 1 . 1 . 16 1 . 5 3 Full Trace Events 19 | . 1 2 . . . 1 . . . . 9 1 . 2 3 Feedback Events 2 | . . . . . . . . . . . 1 . . . 1 Corruption 1 | . . . . . . . . . . . 1 . . . . Hackware Fried 1 | . . . . . . . . . . . . . . . 1 Feedback Blocked . | . . . . . . . . . . . . . . . . Robot Schematics Acquired . | . . . . . . . . . . . . . . . . Robots Built . | . . . . . . . . . . . . . . . . Authchips . | . . . . . . . . . . . . . . . . Time . | . . . . . . . . . . . . . . . . Total Robot Build Rating . | . . . . . . . . . . . . . . . . Part Schematics Acquired 17 | . 3 3 . . . 3 1 . . . 2 3 . 2 . Parts Built 4 | . . . . . . . . . . . 4 . . . . Authchips . | . . . . . . . . . . . . . . . . Time 212 | . . . . . . . . . . . 212 . . . . Total Part Build Rating 24 | . . . . . . . . . . . 24 . . . . Parts Repaired 15 | . . 2 . . . 2 . . . . 9 . . . 2 Time 503 | . . 58 . . . 52 . . . . 326 . . . 67 Parts Recycled . | . . . . . . . . . . . . . . . . Recycled Matter . | . . . . . . . . . . . . . . . . Retrieved Matter . | . . . . . . . . . . . . . . . . Retrieved Components . | . . . . . . . . . . . . . . . . Parts Scanalyzed . | . . . . . . . . . . . . . . . . Part Schematics Acquired . | . . . . . . . . . . . . . . . . Parts Damaged . | . . . . . . . . . . . . . . . . Bothacking | -11 -10 -9 -9 -9 -8 -8 -7 -7 -7 -7 -6 -5 -5 -5 -4 ------------ Run | Yrd Mat Mat Min Exi Min Mat Fac Was Fac DSF Fac Fac Was Fac Fac Used RIF Installer . | . . . . . . . . . . . . . . . . Robots Hacked . | . . . . . . . . . . . . . . . . Non-combat . | . . . . . . . . . . . . . . . . Combat . | . . . . . . . . . . . . . . . . Robot Hacks Applied . | . . . . . . . . . . . . . . . . Relay Couplers Released . | . . . . . . . . . . . . . . . . Fabnet Peak Effective % . | . . . . . . . . . . . . . . . . Robots Rewired . | . . . . . . . . . . . . . . . . Allies Hacked . | . . . . . . . . . . . . . . . . Hacks Repelled . | . . . . . . . . . . . . . . . . Allies | -11 -10 -9 -9 -9 -8 -8 -7 -7 -7 -7 -6 -5 -5 -5 -4 -------- Run | Yrd Mat Mat Min Exi Min Mat Fac Was Fac DSF Fac Fac Was Fac Fac Total Allies 19 | . . . . . . . . 19 . . . . . . . Largest Group 19 | . . . . . . . . 19 19 19 9 . . . . Highest-Rated Group 475 | . . . . . . . . 475 475 475 276 . . . . Highest-Rated Ally 35 | . . . . . . . . 35 35 35 35 . . . . Initial Warlord ECA Mod 40 | . . . . . . . . . . . 9 8 8 8 7 Total Orders . | . . . . . . . . . . . . . . . . Ally Attacks 157 | . . . . . . . . 20 . 76 61 . . . . Total Damage 4711 | . . . . . . . . 313 . 1627 2771 . . . . Kills 33 | . . . . . . . . . . 10 23 . . . . Allies Corrupted . | . . . . . . . . . . . . . . . . Allies Melted . | . . . . . . . . . . . . . . . . Intel | -11 -10 -9 -9 -9 -8 -8 -7 -7 -7 -7 -6 -5 -5 -5 -4 ------- Run | Yrd Mat Mat Min Exi Min Mat Fac Was Fac DSF Fac Fac Was Fac Fac Active Infowar (turns) 5912 | . . . . . . . . . 97 339 2924 536 101 1430 485 Machine Analysis 1915 | . . . . . . . . . . . . . . 1430 485 Jamming 3997 | . . . . . . . . . 97 339 2924 536 101 . . Robot Analysis Total . | . . . . . . . . . . . . . . . . Derelict Logs Recovered . | . . . . . . . . . . . . . . . . Drone Launches . | . . . . . . . . . . . . . . . . Drone Recoveries . | . . . . . . . . . . . . . . . . Exploration | -11 -10 -9 -9 -9 -8 -8 -7 -7 -7 -7 -6 -5 -5 -5 -4 ------------- Run | Yrd Mat Mat Min Exi Min Mat Fac Was Fac DSF Fac Fac Was Fac Fac Turns Passed 12130 | 71 790 1576 154 677 28 922 171 422 187 339 2998 536 192 1576 1491 Spaces Moved 5383 | 41 389 644 82 418 18 357 96 219 90 151 1283 269 112 701 513 Core 141 | 10 . . . . . . . . . . . . . . 131 Treads 5242 | 31 389 644 82 418 18 357 96 219 90 151 1283 269 112 701 382 Legs . | . . . . . . . . . . . . . . . . Wheels . | . . . . . . . . . . . . . . . . Hover . | . . . . . . . . . . . . . . . . Flight . | . . . . . . . . . . . . . . . . Fastest Speed 50 | 50 160 160 160 160 160 160 160 160 160 160 160 160 160 160 50 Average Speed 161 | 146 160 160 160 160 160 167 160 178 192 207 160 160 160 160 139 Slowest Speed 243 | 160 160 160 160 160 160 243 160 240 240 240 160 160 160 160 240 Overloaded Moves . | . . . . . . . . . . . . . . . . Propulsion Burnouts . | . . . . . . . . . . . . . . . . Robots Hopped . | . . . . . . . . . . . . . . . . Potential Cave-ins . | . . . . . . . . . . . . . . . . Cave-ins Triggered . | . . . . . . . . . . . . . . . . Exploration Rate (%) 41 | 4 76 67 26 88 10 46 4 88 2 94 38 8 80 15 12 Regions Visited 15 Branch Regions 3 Pre-discovered Areas . | . . . . . . . . . . . . . . . . Known Exits Taken 3 | . 1 . . . . . . . 1 . 1 . . . . Unknown Exits Taken 7 | 1 . 1 1 1 1 1 . . . . . . . 1 . Scrap Searched 1 | . . . 1 . . . . . . . . . . . . Spaces Dug 1 | . . . . . . . . . . . . . . . 1 Terrain Destroyed 206 | . . . . . . 44 . 1 . . 32 . . 126 3 Melee . | . . . . . . . . . . . . . . . . Projectile 9 | . . . . . . . . 1 . . 5 . . . 3 AOE 197 | . . . . . . 44 . . . . 27 . . 126 . Terrain Rammed . | . . . . . . . . . . . . . . . . Walls Destroyed . | . . . . . . . . . . . . . . . . Machines Disabled . | . . . . . . . . . . . . . . . . Actions | -11 -10 -9 -9 -9 -8 -8 -7 -7 -7 -7 -6 -5 -5 -5 -4 --------- Run | Yrd Mat Mat Min Exi Min Mat Fac Was Fac DSF Fac Fac Was Fac Fac Total 7996 | 51 467 927 89 427 17 553 108 249 104 180 2114 316 120 1106 1168 Wait 1792 | . 7 130 1 . . 96 3 16 9 4 727 5 4 333 457 Move 5370 | 40 388 643 81 417 17 356 96 218 89 150 1282 269 111 700 513 Hop . | . . . . . . . . . . . . . . . . Pick Up 109 | 4 12 25 . 2 . 8 1 5 2 11 13 4 . 10 12 Fast Attach 23 | 4 . 2 . 2 . 7 . . . 1 6 . . . 1 Attach 66 | 2 1 7 . 2 . 5 2 2 2 1 13 3 1 8 17 Detach 9 | 1 . . . 1 . 1 1 . . . 4 . . 1 . Swap 42 | . 7 10 . . . 7 . . 1 3 10 3 1 . . Drop 80 | . 8 15 . 3 . 14 . 6 1 10 5 3 1 2 12 Fire 490 | . 44 86 7 . . 59 5 2 . . 54 29 2 52 150 Melee . | . . . . . . . . . . . . . . . . Ram 2 | . . . . . . . . . . . . . . . 2 Kick . | . . . . . . . . . . . . . . . . Crush 4 | . . . . . . . . . . . . . . . 4 Escape Stasis . | . . . . . . . . . . . . . . . . Rewire . | . . . . . . . . . . . . . . . . Trap . | . . . . . . . . . . . . . . . . Miscellaneous 9 | . . 9 . . . . . . . . . . . . . Route ------- -11/Scrapyard -10/Materials (discovered 4 exits: *Mat x3 / [*Min]) -9/Materials (discovered 3 exits: *Mat x2 / [*Min]) -9/Mines -9/Exiles (discovered 2 exits: [*Min x2]) -8/Mines -8/Materials -7/Factory -7/Waste -7/Factory -7/DSF -6/Factory (discovered 5 exits: *Fac x4 / [*Low]) -5/Factory -5/Waste -5/Factory (discovered 2 exits: *Fac x2) -4/Factory History --------- Turn | Location | Event 7 | -11/Scrapyard | Discovered new exit (range 15) 72 | -11/Scrapyard | Entered Materials 193 | -10/Materials | Identified exit to Materials 263 | -10/Materials | Discovered new exit (range 12) 306 | -10/Materials | Build established: Mutant 862 | -10/Materials | Entered another Materials area 862 | -9/Materials | Evolved 2 slots: Utility x1, Weapon x1 1301 | -9/Materials | Build established: Tank 1456 | -9/Materials | Repaired Hvy. Assault Rifle 1550 | -9/Materials | Discovered new exit (range 5) 1794 | -9/Materials | Build established: Scavenger-Tank 2098 | -9/Materials | Discovered new exit (range 10) 2238 | -9/Materials | Repaired Lgt. Armor Plating 2265 | -9/Materials | Discovered new exit (range 7) 2438 | -9/Materials | Entered Mines 2525 | -9/Mines | Build established: Hacker-Tank 2585 | -9/Mines | Deemed a non-threat by the Exiles lab entrance 2585 | -9/Mines | Discovered new exit (range 5) 2592 | -9/Mines | Entered Exiles 2618 | -9/Exiles | Discovered new exit (range 15) 2636 | -9/Exiles | Met 8R-AWN 2664 | -9/Exiles | Met EX-HEX 2728 | -9/Exiles | Met EX-DEC 2801 | -9/Exiles | Visited The Gauntlet 3010 | -9/Exiles | Met EX-BIN 3028 | -9/Exiles | Aligned with FarCom system 3029 | -9/Exiles | Given EX-Vault access code 3068 | -9/Exiles | Opened EX-Vault 3079 | -9/Exiles | Found AWS/Autocannon 3120 | -9/Exiles | Warned to stay clear of 0b10 Research branches 3249 | -9/Exiles | Discovered new exit (range 14) 3269 | -9/Exiles | Left Exiles lab with AWS/Autocannon 3269 | -9/Exiles | Entered Mines 3269 | -8/Mines | Discovered new exit (range 16) 3297 | -8/Mines | Entered Materials 3297 | -8/Materials | Evolved 2 slots: Propulsion x1, Utility x1 3919 | -8/Materials | Build established: Scavenger-Tank 3994 | -8/Materials | Destroyed 7 combat bots 4152 | -8/Materials | Repaired Lgt. Treads 4179 | -8/Materials | Repaired Lgt. Treads 4208 | -8/Materials | Discovered new exit (range 5) 4219 | -8/Materials | Entered Factory 4219 | -7/Factory | Evolved 2 slots: Utility x2 4390 | -7/Factory | Sucked down chute 4390 | -7/Factory | Entered Waste 4424 | -7/Waste | Spotted C-40 Crusher 4448 | -7/Waste | Destroyed C-40 Crusher 4468 | -7/Waste | Spotted C-40 Crusher 4484 | -7/Waste | Destroyed C-40 Crusher 4493 | -7/Waste | Spotted C-40 Crusher 4497 | -7/Waste | Destroyed C-40 Crusher 4514 | -7/Waste | Spotted C-40 Crusher 4522 | -7/Waste | Spotted C-40 Crusher 4522 | -7/Waste | Destroyed C-40 Crusher 4530 | -7/Waste | Destroyed C-40 Crusher 4591 | -7/Waste | Warlord forces began an assault 4597 | -7/Waste | Spotted C-40 Crusher 4603 | -7/Waste | Destroyed C-40 Crusher 4765 | -7/Waste | Discovered new exit (range 11) 4812 | -7/Waste | Entered Factory 4812 | -7/Factory | Accompanied by 19 allies 4867 | -7/Factory | Build established: Hacker-Tank 4982 | -7/Factory | Identified exit to DSF 4999 | -7/Factory | Entered DSF 4999 | -7/DSF | Accompanied by 19 allies 5015 | -7/DSF | Additional patrols routed to DSF 5033 | -7/DSF | Discovered new exit (range 16) 5060 | -7/DSF | Lost 8 allies 5316 | -7/DSF | Sterilization system engaged 5336 | -7/DSF | Ambient heat levels rising (+10) 5338 | -7/DSF | Entered Factory 5338 | -6/Factory | Accompanied by 9 allies 5338 | -6/Factory | Evolved 2 slots: Propulsion x1, Utility x1 5416 | -6/Factory | Repaired Hvy. Treads 5660 | -6/Factory | Assembled infested ambush trap array 5787 | -6/Factory | Repaired Hrd. Medium Armor Plating 5807 | -6/Factory | Repaired Hrd. Medium Armor Plating 5883 | -6/Factory | Repaired Hvy. Treads 5948 | -6/Factory | Lost 3 allies 6051 | -6/Factory | Allied Derelicts emerged from ambush trap array 6157 | -6/Factory | Lost 4 allies 6279 | -6/Factory | Identified exit to Factory 6828 | -6/Factory | Destroyed 7 combat bots 6856 | -6/Factory | Discovered new exit (range 13) 7195 | -6/Factory | Fabricated Adv. Hacking Suite (x1) 7312 | -6/Factory | Fabricated Adv. Hacking Suite (x1) 7469 | -6/Factory | Fabricated Adv. Hacking Suite (x1) 7531 | -6/Factory | AWS/Autocannon suddenly broke down 7702 | -6/Factory | Fabricated Adv. Hacking Suite (x1) 7879 | -6/Factory | Repaired Hvy. Treads 7937 | -6/Factory | Repaired Hvy. Treads 7983 | -6/Factory | Repaired Transmission Jammer 8023 | -6/Factory | Repaired Hrd. Medium Armor Plating 8062 | -6/Factory | Repaired Hrd. Medium Armor Plating 8204 | -6/Factory | Allied Derelicts emerged from ambush trap array 8336 | -6/Factory | Entered another Factory area 8336 | -5/Factory | Evolved 2 slots: Power x1, Utility x1 8872 | -5/Factory | Sucked down chute 8872 | -5/Factory | Entered Waste 8887 | -5/Waste | EMP discharged 8903 | -5/Waste | Spotted C-40 Crusher 8950 | -5/Waste | Spotted C-40 Crusher 8961 | -5/Waste | Crushed by Compactor (1 part destroyed, 1 dropped) 8967 | -5/Waste | Crushed by Compactor (1 part destroyed, 2 dropped) 8970 | -5/Waste | Crushed by Compactor (1 part destroyed, 1 dropped) 8974 | -5/Waste | Spotted C-40 Crusher 8974 | -5/Waste | Crushed by Compactor (1 part destroyed) 8987 | -5/Waste | EMP discharged 8994 | -5/Waste | Spotted C-40 Crusher 8998 | -5/Waste | Crushed by Compactor (1 part destroyed) 9002 | -5/Waste | Spotted C-40 Crusher 9029 | -5/Waste | Lost 5 parts (3u2w) 9044 | -5/Waste | Spotted C-40 Crusher 9049 | -5/Waste | Discovered new exit (range 10) 9064 | -5/Waste | Entered Factory 9126 | -5/Factory | Discovered new exit (range 12) 9258 | -5/Factory | Identified exit to DSF 9261 | -5/Factory | Garrison activated, responded to threat 9469 | -5/Factory | System corruption reached 10% 10195 | -5/Factory | Discovered new exit (range 15) 10539 | -5/Factory | Build established: Hacker-Mutant 10640 | -5/Factory | Entered another Factory area 10640 | -4/Factory | Evolved 2 slots: Utility x2 10815 | -4/Factory | Adv. Hacking Suite fried by hacking feedback 11268 | -4/Factory | Lost 3 parts (1p2u) 11362 | -4/Factory | Repaired Broken Hvy. Treads 11396 | -4/Factory | Repaired Hvy. Treads 11743 | -4/Factory | Lost 3 parts (3u) 11819 | -4/Factory | Found Quantum Capacitor 12036 | -4/Factory | Cargo convoy interrupted 12043 | -4/Factory | Spotted Executioner 12068 | -4/Factory | Core integrity fell below 50% 12106 | -4/Factory | Lost 9 parts (2p2n4u1w) 12120 | -4/Factory | Core integrity fell below 20% 12131 | -4/Factory | Core destroyed Last Messages --------------- U-05 Engineer builds a Wall. Machine Analyzer destroyed. K-01 Serf cleans the Fusion Modulator. ALERT: Potential suspicious activity detected, Programmers report to Factory Zone 2N. System corrupted: Matter fused (-8). C-30 ARC bursts open, deploying its payload. S-27 Virus unfolds itself. K-01 Serf collects debris. K-01 Serf cleans the Construction Platform. Nuclear Reactor explodes. W-44 Eye destroyed. U-05 Engineer lays Concrete. Adv. Hacking Suite destroyed. U-05 Engineer lays Concrete. Slammed into U-05 Engineer. U-05 Engineer destroyed. Acquired 3 matter. Slammed into A-15 Conveyor. Destabilizing: Core damaged (-23). Map ----- +----------------------------------------------------+ | ???????????????????????????????????# ????????? | | ???????????????????????????????????# #???????? | | ???????????????????????????????????# #???????? | | ???????????????????????????????????# #???????? | | ???????????????????????????????????# #???????? | | ???????????????????????????????????# #???????? | | ???????????????????????????????????# ######### | | ???????????????????????????????????# | | ???????????????????????????????????# | | ?????????????H?????????????????????# | | ???????????????????????????????????# | | ???????????????????????????????????# | | ??????????????????????????########## | | ??????????????????????????# # """"""" " | | ??????????????????????????# # """"""" " | | ??????????????????????????# # """"""" " | | ??????????????????????????# # """"""" " | | ?????????ss???????????????# | | ??????????????????????????# | | ?????????ss???????????????# ## | | ??????????????????????????# #? | | ??????????????????????????# p !%"" !#? | | ??????????????????????????######## G" #? | | ?????????????????????????????????# s "" #? | | ?????????????""" ############### p +? | | ?????????????""" @%!|%*sss s w ! #? | | ?????????????""" A ######## ## #? | | ?????????????""" #?????? # #? | | ???????????? #?????? # | | ??????????? #?????? #????? | | ????????????########### #?????? """" #??????? | | ??????????????????????# #?????? """" +??????? | | ??????????????????????# #?????? """" #??????? | | ??????????????????????# A #????? """? #??????? | | ??????????????????????# #????? ????? #??????? | | ??????????????????????+ #????? ??????#??????? | | ??????????????????????# #????? ?????????????? | | ??????????????????????# #????? ?????????????? | | ??????????????????????# #????? ??????????????? | | ??????????????????????# #????????????????????? | | ??????????????????????? ?????????????????????? | | ?????????????????????????????????????????????????? | | ?????????????????????????????????????????????????? | | ?????????????????????????????????????????????????? | | ?????????????????????????????????????????????????? | | ?????????????????????????????????????????????????? | | ?????????????????????????????????????????????????? | | ?????????????????????????????????????????????????? | | ?????????????????????????????????????????????????? | | ?????????????????????????????????????????????????? | +----------------------------------------------------+ Best States ------------- Heat Dissipation 81 Energy Generation 30 Energy Capacity 385 Matter Stores 300 Matter Capacity 300 Sight Range 16 Terrain Scan Density 10 Jamming Range 12 Armor Coverage 1650 Resistance: KI 20 Resistance: TH 20 Resistance: EX 20 Resistance: EM 20 Resistance: I 20 Resistance: S 20 Resistance: P 20 Point Defense Rating 80 Evasion (%) 50 Target Analysis 6 Recoil Reduction 4 Offensive Hacking 58 Item Schematics ----------------- Sensor Array | -10/Materials | Hacked Lrg. Storage Unit | -10/Materials | Hacked Lgt. Armor Plating | -10/Materials | Hacked Med. Armor Plating | -9/Materials | Hacked Imp. Ion Engine | -9/Materials | Hacked Imp. Treads | -9/Materials | Hacked Hvy. Armor Plating | -8/Materials | Hacked Arm. Treads | -8/Materials | Hacked Hacking Suite | -8/Materials | Hacked Adv. Treads | -7/Factory | Hacked Hvy. Missile Launcher | -6/Factory | Hacked Adv. Hacking Suite | -6/Factory | Hacked Adv. System Restoration Module | -5/Factory | Hacked Adv. System Shield | -5/Factory | Hacked Imp. Focal Shield | -5/Factory | Hacked Imp. Recalibrator | -5/Factory | Hacked Imp. System Restoration Module | -5/Factory | Hacked Robot Schematics ------------------ None Fabricated ------------ Adv. Hacking Suite | x1 | -6/Factory Adv. Hacking Suite | x1 | -6/Factory Adv. Hacking Suite | x1 | -6/Factory Adv. Hacking Suite | x1 | -6/Factory Repaired ---------- Hvy. Assault Rifle | 4% | -9/Materials Lgt. Armor Plating | 33% | -9/Materials Lgt. Treads | 60% | -8/Materials Lgt. Treads | 67% | -8/Materials Hvy. Treads | 75% | -6/Factory Hrd. Medium Armor Plating | 53% | -6/Factory Hrd. Medium Armor Plating | 55% | -6/Factory Hvy. Treads | 77% | -6/Factory Hvy. Treads | 32% | -6/Factory Hvy. Treads | 45% | -6/Factory Transmission Jammer | 30% | -6/Factory Hrd. Medium Armor Plating | 19% | -6/Factory Hrd. Medium Armor Plating | 65% | -6/Factory Hvy. Treads | 14% | -4/Factory | Broken Hvy. Treads | 6% | -4/Factory Alien Tech Used ----------------- None Achievements -------------- Below Can't Touch This It Was An Accident, I Swear No Signal Quick And Dirty System Compromised Challenges ------------ None Game ------ Seed ElectrostormSmallStrikerail Manual? 0 Play Time 02:36:40 Cumulative 13.1 hours Start 2025.07.04 @ 16:01:35 End 2025.07.04 @ 19:04:58 Sessions 1 Manual Loads 0 Difficulty Adventurer Special Mode None Game No. 7 Rogue 0 Adventurer 7 Explorer 0 Win Type - Total 0 Types 0/0/0/0/0/0/0/0/0/0 Lore% 3 Gallery% 14 Achievement% 21 Wizard Run 0 Options --------- Layout 1 ASCII 0 Keyboard 0 Movement Mouse Keybinds 0 Fullscreen 1 Font 24/Smallcaps Map View 50x35 Zoom Use 0% Tactical HUD 0 Map Filters NONE Filters NONE Steam 1 RUN: c1cca12c-f63f-4528-8549-83e8180ef19f